[Event "Early-Titled-Tuesday-Blitz-October-17-2023"]
[Site "Chess.com"]
[Date "2023.10.17"]
[Round "1"]
[White "GaiozNigalidze"]
[Black "GMaka"]
[Result "0-1"]
[WhiteElo "2706"]
[BlackElo "2468"]
[TimeControl "180+1"]
[EndTime "8:07:51 PDT"]
[Termination "GMaka won by resignation"]

1. c4 {[%clk 0:02:59.6]} 1... e6 {[%clk 0:02:59]} 2. Nf3 {[%clk 0:02:59.7]} 2...
Nf6 {[%clk 0:02:58.3]} 3. b3 {[%clk 0:02:58.4]} 3... b6 {[%clk 0:02:57.5]} 4.
Bb2 {[%clk 0:02:58.5]} 4... Bb7 {[%clk 0:02:58.2]} 5. g3 {[%clk 0:02:58.2]} 5...
Bxf3 {[%clk 0:02:50.8]} 6. exf3 {[%clk 0:02:57.8]} 6... c5 {[%clk 0:02:51.7]} 7.
Bg2 {[%clk 0:02:41.2]} 7... Nc6 {[%clk 0:02:51]} 8. f4 {[%clk 0:02:38.2]} 8...
g6 {[%clk 0:02:44.5]} 9. d4 {[%clk 0:02:14.9]} 9... cxd4 {[%clk 0:02:29.7]} 10.
Bxd4 {[%clk 0:02:12.2]} 10... Nxd4 {[%clk 0:02:17]} 11. Qxd4 {[%clk 0:02:10]}
11... Rc8 {[%clk 0:02:06.1]} 12. Nc3 {[%clk 0:01:59.5]} 12... Bg7 {[%clk
0:02:03.7]} 13. O-O {[%clk 0:01:51.9]} 13... O-O {[%clk 0:02:00.7]} 14. Qd3
{[%clk 0:01:38.3]} 14... d5 {[%clk 0:01:48.6]} 15. Nb5 {[%clk 0:00:54.9]} 15...
a6 {[%clk 0:01:21]} 16. Na3 {[%clk 0:00:54.2]} 16... Qe7 {[%clk 0:01:04]} 17.
Nc2 {[%clk 0:00:48.3]} 17... Rfd8 {[%clk 0:00:56.5]} 18. Qe2 {[%clk 0:00:37.1]}
18... dxc4 {[%clk 0:00:53.4]} 19. bxc4 {[%clk 0:00:38]} 19... Qc5 {[%clk
0:00:53.6]} 20. Ne3 {[%clk 0:00:35.4]} 20... Rd4 {[%clk 0:00:46.5]} 21. Rab1
{[%clk 0:00:35.1]} 21... Rcd8 {[%clk 0:00:46.6]} 22. Rb2 {[%clk 0:00:34.2]}
22... R8d6 {[%clk 0:00:44.5]} 23. h3 {[%clk 0:00:32.6]} 23... Qa5 {[%clk
0:00:39.3]} 24. Qf3 {[%clk 0:00:29.8]} 24... Ne4 {[%clk 0:00:28.5]} 25. c5
{[%clk 0:00:17.2]} 25... Nxc5 {[%clk 0:00:26.2]} 26. Rc2 {[%clk 0:00:17.1]}
26... Rd8 {[%clk 0:00:19.9]} 27. Nc4 {[%clk 0:00:16.9]} 27... Qa4 {[%clk
0:00:18.4]} 28. Ne3 {[%clk 0:00:17.1]} 28... Ne4 {[%clk 0:00:17.5]} 29. Qe2
{[%clk 0:00:15.6]} 29... b5 {[%clk 0:00:15.3]} 30. Rfc1 {[%clk 0:00:14.8]} 30...
Nd2 {[%clk 0:00:14.1]} 31. g4 {[%clk 0:00:12.6]} 31... Bf8 {[%clk 0:00:10.9]}
32. f5 {[%clk 0:00:12.7]} 32... exf5 {[%clk 0:00:10.2]} 33. gxf5 {[%clk
0:00:13.6]} 33... Ne4 {[%clk 0:00:09.8]} 34. fxg6 {[%clk 0:00:13.2]} 34... hxg6
{[%clk 0:00:10.7]} 35. Ng4 {[%clk 0:00:13.5]} 35... Bg7 {[%clk 0:00:10.4]} 36.
Rc8 {[%clk 0:00:12.8]} 36... Nf6 {[%clk 0:00:09.2]} 37. Rxd8+ {[%clk 0:00:11.8]}
37... Rxd8 {[%clk 0:00:10.1]} 38. Nxf6+ {[%clk 0:00:11.4]} 38... Bxf6 {[%clk
0:00:11]} 39. Qf3 {[%clk 0:00:11.6]} 39... Qd4 {[%clk 0:00:10.6]} 40. Qb7 {[%clk
0:00:08.2]} 40... Rd6 {[%clk 0:00:09.3]} 41. Qa8+ {[%clk 0:00:07.5]} 41... Kg7
{[%clk 0:00:09.5]} 42. Qf3 {[%clk 0:00:08.4]} 42... Bg5 {[%clk 0:00:08.1]} 43.
Re1 {[%clk 0:00:07.4]} 43... Qf4 {[%clk 0:00:08.3]} 44. Qxf4 {[%clk 0:00:06.8]}
44... Bxf4 {[%clk 0:00:09.2]} 45. Be4 {[%clk 0:00:07]} 45... Rd2 {[%clk
0:00:08.7]} 46. Bb1 {[%clk 0:00:06.9]} 46... Bd6 {[%clk 0:00:08.2]} 47. Kg2
{[%clk 0:00:07.1]} 47... Bc5 {[%clk 0:00:08.7]} 48. Rf1 {[%clk 0:00:07.7]} 48...
Rb2 {[%clk 0:00:09.1]} 49. Kf3 {[%clk 0:00:08.1]} 49... Bxf2 {[%clk 0:00:08.9]}
50. Rxf2 {[%clk 0:00:07.9]} 50... Rxb1 {[%clk 0:00:09.1]} 51. Rc2 {[%clk
0:00:08.6]} 51... Rb4 {[%clk 0:00:08.6]} 52. Rc6 {[%clk 0:00:08.6]} 52... Ra4
{[%clk 0:00:09.5]} 0-1

[Event "Early-Titled-Tuesday-Blitz-October-17-2023"]
[Site "Chess.com"]
[Date "2023.10.17"]
[Round "1"]
[White "Anton_Demchenko"]
[Black "ylr5000"]
[Result "0-1"]
[WhiteElo "3015"]
[BlackElo "2540"]
[TimeControl "180+1"]
[EndTime "8:07:54 PDT"]
[Termination "ylr5000 won by checkmate"]

1. e4 {[%clk 0:03:00.9]} 1... c5 {[%clk 0:02:58.3]} 2. Nf3 {[%clk 0:02:59.2]}
2... d6 {[%clk 0:02:58.3]} 3. d4 {[%clk 0:02:59.2]} 3... cxd4 {[%clk 0:02:59.2]}
4. Nxd4 {[%clk 0:02:59.9]} 4... Nf6 {[%clk 0:02:59.8]} 5. Nc3 {[%clk 0:03:00.5]}
5... Nc6 {[%clk 0:03:00.5]} 6. Bg5 {[%clk 0:02:59.2]} 6... e6 {[%clk 0:03:00.8]}
7. Qd2 {[%clk 0:02:58.3]} 7... a6 {[%clk 0:03:01.4]} 8. O-O-O {[%clk 0:02:57.9]}
8... Bd7 {[%clk 0:03:02.1]} 9. Kb1 {[%clk 0:02:57.9]} 9... h6 {[%clk 0:02:58.9]}
10. Be3 {[%clk 0:02:53.2]} 10... Ng4 {[%clk 0:02:56.6]} 11. Nxc6 {[%clk
0:02:50.7]} 11... Bxc6 {[%clk 0:02:54.6]} 12. Bf4 {[%clk 0:02:48.8]} 12... Qc7
{[%clk 0:02:54.9]} 13. Bg3 {[%clk 0:02:37]} 13... O-O-O {[%clk 0:02:46.5]} 14.
f3 {[%clk 0:02:22.4]} 14... Nf6 {[%clk 0:02:42.2]} 15. Qe3 {[%clk 0:02:22.9]}
15... Be7 {[%clk 0:02:37.3]} 16. Bc4 {[%clk 0:02:13]} 16... Kb8 {[%clk
0:02:32.9]} 17. Bf2 {[%clk 0:02:07.4]} 17... b5 {[%clk 0:02:32.5]} 18. Bb3
{[%clk 0:02:07.8]} 18... Nd7 {[%clk 0:02:31.4]} 19. Nd5 {[%clk 0:01:57.8]} 19...
Bxd5 {[%clk 0:02:29.8]} 20. exd5 {[%clk 0:01:58.4]} 20... e5 {[%clk 0:02:30.7]}
21. a4 {[%clk 0:01:45.9]} 21... Nc5 {[%clk 0:02:24.9]} 22. axb5 {[%clk
0:01:37.4]} 22... axb5 {[%clk 0:02:25.8]} 23. Qe2 {[%clk 0:01:27.5]} 23... Qb7
{[%clk 0:02:15.8]} 24. Bxc5 {[%clk 0:01:10.1]} 24... dxc5 {[%clk 0:02:16.7]} 25.
d6 {[%clk 0:01:10.9]} 25... Bxd6 {[%clk 0:02:11.4]} 26. Bd5 {[%clk 0:01:09.3]}
26... Qb6 {[%clk 0:02:07.9]} 27. Bxf7 {[%clk 0:01:09.4]} 27... Kc7 {[%clk
0:02:00.2]} 28. c3 {[%clk 0:01:05.6]} 28... Ra8 {[%clk 0:01:50.4]} 29. Bd5
{[%clk 0:01:01]} 29... Ra6 {[%clk 0:01:46.2]} 30. Kc2 {[%clk 0:00:58.7]} 30...
c4 {[%clk 0:01:41.1]} 31. Ra1 {[%clk 0:00:51.9]} 31... Rd8 {[%clk 0:01:39.2]}
32. Rhd1 {[%clk 0:00:42.5]} 32... Kb8 {[%clk 0:00:53.6]} 33. Qe1 {[%clk
0:00:34]} 33... Bc7 {[%clk 0:00:36]} 34. Be4 {[%clk 0:00:20]} 34... Rxd1 {[%clk
0:00:34.2]} 35. Rxd1 {[%clk 0:00:20.1]} 35... Qa5 {[%clk 0:00:33.1]} 36. Rd7
{[%clk 0:00:09]} 36... Qa4+ {[%clk 0:00:27.3]} 37. Kd2 {[%clk 0:00:09.3]} 37...
Rd6+ {[%clk 0:00:23.5]} 38. Rxd6 {[%clk 0:00:09.1]} 38... Bxd6 {[%clk
0:00:24.4]} 39. Qf2 {[%clk 0:00:03.7]} 39... Kc7 {[%clk 0:00:24.5]} 40. Qg3
{[%clk 0:00:03.3]} 40... g5 {[%clk 0:00:23.7]} 41. Qf2 {[%clk 0:00:03.4]} 41...
Qa2 {[%clk 0:00:22.5]} 42. Kc1 {[%clk 0:00:03.8]} 42... Qa1+ {[%clk 0:00:22.2]}
43. Bb1 {[%clk 0:00:03.6]} 43... Qa6 {[%clk 0:00:15.1]} 44. Qc2 {[%clk
0:00:02.9]} 44... Qb6 {[%clk 0:00:13.2]} 45. Qe2 {[%clk 0:00:02.8]} 45... Qg1+
{[%clk 0:00:12.9]} 46. Kc2 {[%clk 0:00:03.1]} 46... Qxh2 {[%clk 0:00:13.7]} 47.
b3 {[%clk 0:00:02.9]} 47... cxb3+ {[%clk 0:00:13.5]} 48. Kxb3 {[%clk 0:00:03.8]}
48... Qg1 {[%clk 0:00:13.5]} 49. Bd3 {[%clk 0:00:04]} 49... Qc5 {[%clk
0:00:13.4]} 50. Bxb5 {[%clk 0:00:04.2]} 50... Qa3+ {[%clk 0:00:14.1]} 51. Kc2
{[%clk 0:00:04.1]} 51... Qa2+ {[%clk 0:00:14.9]} 52. Kd3 {[%clk 0:00:04.3]}
52... Qb1+ {[%clk 0:00:15.5]} 53. Kd2 {[%clk 0:00:04.3]} 53... Qb2+ {[%clk
0:00:15.5]} 54. Ke1 {[%clk 0:00:04.6]} 54... Qc1+ {[%clk 0:00:15.9]} 55. Kf2
{[%clk 0:00:04.5]} 55... Bc5+ {[%clk 0:00:16.6]} 56. Kg3 {[%clk 0:00:03.7]}
56... Qf4+ {[%clk 0:00:17.4]} 57. Kh3 {[%clk 0:00:04]} 57... Qh4# {[%clk
0:00:18.3]} 0-1

[Event "Early-Titled-Tuesday-Blitz-October-17-2023"]
[Site "Chess.com"]
[Date "2023.10.17"]
[Round "1"]
[White "Actuary44"]
[Black "dianamirza"]
[Result "1/2-1/2"]
[WhiteElo "2531"]
[BlackElo "2044"]
[TimeControl "180+1"]
[EndTime "8:07:56 PDT"]
[Termination "Game drawn by stalemate"]

1. e4 {[%clk 0:03:00.9]} 1... c5 {[%clk 0:02:18]} 2. d4 {[%clk 0:02:59.1]} 2...
cxd4 {[%clk 0:02:14.9]} 3. c3 {[%clk 0:02:59.6]} 3... dxc3 {[%clk 0:02:15.8]} 4.
Nxc3 {[%clk 0:03:00.1]} 4... Nc6 {[%clk 0:02:13.8]} 5. f4 {[%clk 0:03:00.7]}
5... d6 {[%clk 0:02:12.2]} 6. Nf3 {[%clk 0:03:01.2]} 6... Nf6 {[%clk 0:02:06.8]}
7. Bd3 {[%clk 0:03:01.1]} 7... Bg4 {[%clk 0:02:06.6]} 8. O-O {[%clk 0:03:01.1]}
8... e6 {[%clk 0:02:05.7]} 9. Kh1 {[%clk 0:03:01.6]} 9... Be7 {[%clk 0:02:05.7]}
10. Qe1 {[%clk 0:03:02.1]} 10... Bxf3 {[%clk 0:02:00.3]} 11. Rxf3 {[%clk
0:03:01.5]} 11... Nd4 {[%clk 0:02:00.6]} 12. Rh3 {[%clk 0:02:57.9]} 12... h5
{[%clk 0:01:49.1]} 13. Be3 {[%clk 0:02:57.2]} 13... e5 {[%clk 0:01:41.2]} 14.
Bxd4 {[%clk 0:02:32.6]} 14... exd4 {[%clk 0:01:40.8]} 15. Bb5+ {[%clk
0:02:32.6]} 15... Kf8 {[%clk 0:01:39.1]} 16. Nd5 {[%clk 0:02:31.5]} 16... Nxd5
{[%clk 0:01:33]} 17. exd5 {[%clk 0:02:32.4]} 17... g6 {[%clk 0:01:22.5]} 18. f5
{[%clk 0:02:30.6]} 18... Bf6 {[%clk 0:01:16.8]} 19. fxg6 {[%clk 0:02:29.1]}
19... fxg6 {[%clk 0:01:16.9]} 20. Qe4 {[%clk 0:02:13.9]} 20... Kg7 {[%clk
0:01:16]} 21. Rg3 {[%clk 0:02:11.5]} 21... Rh6 {[%clk 0:01:13.5]} 22. Rf1 {[%clk
0:02:08.7]} 22... Qe7 {[%clk 0:01:11]} 23. Qd3 {[%clk 0:01:54.2]} 23... g5
{[%clk 0:01:03.5]} 24. Rgf3 {[%clk 0:01:49.2]} 24... Rf8 {[%clk 0:01:03]} 25.
Ba4 {[%clk 0:01:47.3]} 25... Qe5 {[%clk 0:01:02.5]} 26. Bc2 {[%clk 0:01:46.5]}
26... Qxd5 {[%clk 0:00:58.1]} 27. Rf5 {[%clk 0:01:32]} 27... Qe6 {[%clk
0:00:53.5]} 28. Qb5 {[%clk 0:01:25.6]} 28... Rf7 {[%clk 0:00:48.8]} 29. Bb3
{[%clk 0:01:23.3]} 29... Qd7 {[%clk 0:00:41.6]} 30. Bxf7 {[%clk 0:01:21.7]}
30... Qxb5 {[%clk 0:00:40.6]} 31. Rxb5 {[%clk 0:01:22.6]} 31... Kxf7 {[%clk
0:00:40.3]} 32. Rxb7+ {[%clk 0:01:22.8]} 32... Ke6 {[%clk 0:00:37.1]} 33. Rxa7
{[%clk 0:01:23.2]} 33... Be5 {[%clk 0:00:37.3]} 34. a4 {[%clk 0:01:20.2]} 34...
d3 {[%clk 0:00:29.8]} 35. Rd1 {[%clk 0:01:17.8]} 35... Rf6 {[%clk 0:00:29.8]}
36. g3 {[%clk 0:00:59.5]} 36... Rf3 {[%clk 0:00:18.9]} 37. b4 {[%clk 0:00:58.4]}
37... Bc3 {[%clk 0:00:17.3]} 38. b5 {[%clk 0:00:57.4]} 38... d2 {[%clk
0:00:17.4]} 39. Rc7 {[%clk 0:00:47.7]} 39... Re3 {[%clk 0:00:16.1]} 40. Rxc3
{[%clk 0:00:43.6]} 40... Re1+ {[%clk 0:00:15.9]} 41. Kg2 {[%clk 0:00:44]} 41...
Rxd1 {[%clk 0:00:16.2]} 42. Rd3 {[%clk 0:00:42.6]} 42... Ra1 {[%clk 0:00:14.6]}
43. Rxd2 {[%clk 0:00:42.7]} 43... Rxa4 {[%clk 0:00:14.9]} 44. Rb2 {[%clk
0:00:42.5]} 44... Ra7 {[%clk 0:00:14.9]} 45. Kf3 {[%clk 0:00:41.8]} 45... Rb7
{[%clk 0:00:15.1]} 46. Ke4 {[%clk 0:00:41.9]} 46... d5+ {[%clk 0:00:15.1]} 47.
Kd4 {[%clk 0:00:40.5]} 47... Kd6 {[%clk 0:00:15.1]} 48. Rb1 {[%clk 0:00:37.9]}
48... h4 {[%clk 0:00:14.6]} 49. gxh4 {[%clk 0:00:32.1]} 49... gxh4 {[%clk
0:00:15.5]} 50. b6 {[%clk 0:00:25.3]} 50... Kc6 {[%clk 0:00:15.3]} 51. Rc1+
{[%clk 0:00:25.5]} 51... Kd6 {[%clk 0:00:15.3]} 52. Rb1 {[%clk 0:00:25.4]} 52...
h3 {[%clk 0:00:14.6]} 53. Rg1 {[%clk 0:00:23.6]} 53... Rxb6 {[%clk 0:00:07.7]}
54. Rg6+ {[%clk 0:00:23.3]} 54... Kc7 {[%clk 0:00:08.2]} 55. Rxb6 {[%clk
0:00:23.7]} 55... Kxb6 {[%clk 0:00:09.1]} 56. Kxd5 {[%clk 0:00:24.2]} 56... Kc7
{[%clk 0:00:10]} 57. Ke6 {[%clk 0:00:23.4]} 57... Kd8 {[%clk 0:00:10.4]} 58. Kf7
{[%clk 0:00:23.6]} 58... Kd7 {[%clk 0:00:10.5]} 59. Kf6 {[%clk 0:00:23.7]} 59...
Ke8 {[%clk 0:00:10.9]} 60. Kg7 {[%clk 0:00:21.7]} 60... Ke7 {[%clk 0:00:11.2]}
61. Kg6 {[%clk 0:00:22.2]} 61... Kf8 {[%clk 0:00:11.5]} 62. Kg5 {[%clk
0:00:22.8]} 62... Kg7 {[%clk 0:00:11.9]} 63. Kg4 {[%clk 0:00:23.5]} 63... Kh8
{[%clk 0:00:12.4]} 64. Kxh3 {[%clk 0:00:24.2]} 64... Kg8 {[%clk 0:00:13.1]} 65.
Kh4 {[%clk 0:00:25.1]} 65... Kh8 {[%clk 0:00:14]} 66. Kh5 {[%clk 0:00:26]} 66...
Kg8 {[%clk 0:00:14.9]} 67. Kh6 {[%clk 0:00:26.9]} 67... Kh8 {[%clk 0:00:15.8]}
68. h4 {[%clk 0:00:27.4]} 68... Kg8 {[%clk 0:00:16.3]} 69. h5 {[%clk 0:00:28.3]}
69... Kh8 {[%clk 0:00:17.2]} 70. Kg6 {[%clk 0:00:29.1]} 70... Kg8 {[%clk
0:00:18.1]} 71. h6 {[%clk 0:00:29.9]} 71... Kh8 {[%clk 0:00:19]} 72. h7 {[%clk
0:00:30.4]} 1/2-1/2

[Event "Early-Titled-Tuesday-Blitz-October-17-2023"]
[Site "Chess.com"]
[Date "2023.10.17"]
[Round "1"]
[White "santosalberto1987"]
[Black "samolo"]
[Result "0-1"]
[WhiteElo "2447"]
[BlackElo "2736"]
[TimeControl "180+1"]
[EndTime "8:07:57 PDT"]
[Termination "samolo won by resignation"]

1. e4 {[%clk 0:03:00.9]} 1... d6 {[%clk 0:02:14.6]} 2. d4 {[%clk 0:03:00.2]}
2... Nf6 {[%clk 0:02:14.7]} 3. Nc3 {[%clk 0:03:00.4]} 3... g6 {[%clk 0:02:15.2]}
4. Be3 {[%clk 0:03:00.4]} 4... c6 {[%clk 0:02:15.4]} 5. Nf3 {[%clk 0:02:54]}
5... Nbd7 {[%clk 0:02:14.8]} 6. Qd2 {[%clk 0:02:53.3]} 6... Qc7 {[%clk
0:02:14.4]} 7. Bd3 {[%clk 0:02:51]} 7... e5 {[%clk 0:02:13.2]} 8. O-O-O {[%clk
0:02:46.9]} 8... Ng4 {[%clk 0:02:09.7]} 9. Bg5 {[%clk 0:02:45.3]} 9... exd4
{[%clk 0:02:09.3]} 10. Nxd4 {[%clk 0:02:41.1]} 10... Bg7 {[%clk 0:02:09.1]} 11.
h3 {[%clk 0:02:33.2]} 11... Nge5 {[%clk 0:01:48.4]} 12. f4 {[%clk 0:02:28.1]}
12... Nxd3+ {[%clk 0:01:47.9]} 13. Qxd3 {[%clk 0:02:29]} 13... Nc5 {[%clk
0:01:46.7]} 14. Qd2 {[%clk 0:02:24.5]} 14... O-O {[%clk 0:01:40.3]} 15. Nb3
{[%clk 0:02:24.4]} 15... Nxb3+ {[%clk 0:01:35.8]} 16. axb3 {[%clk 0:02:25.3]}
16... h6 {[%clk 0:01:30.8]} 17. Bh4 {[%clk 0:02:22]} 17... d5 {[%clk 0:01:18.2]}
18. exd5 {[%clk 0:02:20.3]} 18... Qa5 {[%clk 0:01:18]} 19. Kb1 {[%clk
0:02:19.6]} 19... Bf5 {[%clk 0:01:00.8]} 20. g4 {[%clk 0:02:16]} 20... Bxc3
{[%clk 0:01:00]} 21. bxc3 {[%clk 0:02:10.5]} 21... Be4 {[%clk 0:01:00.1]} 22. f5
{[%clk 0:02:02]} 22... Qxd5 {[%clk 0:00:58.2]} 23. Qxd5 {[%clk 0:01:48.4]} 23...
cxd5 {[%clk 0:00:58.3]} 24. Rhe1 {[%clk 0:01:45.8]} 24... Rac8 {[%clk
0:00:54.5]} 25. Kb2 {[%clk 0:01:45.6]} 25... b5 {[%clk 0:00:35.5]} 26. Rd2
{[%clk 0:01:14.7]} 26... Rfe8 {[%clk 0:00:28.4]} 27. fxg6 {[%clk 0:01:09.5]}
27... fxg6 {[%clk 0:00:28.4]} 28. Bf6 {[%clk 0:01:08.9]} 28... Kf7 {[%clk
0:00:28.1]} 29. Bd4 {[%clk 0:01:08.9]} 29... Rc7 {[%clk 0:00:26.1]} 30. Ra1
{[%clk 0:01:05.7]} 30... Ree7 {[%clk 0:00:25.9]} 31. h4 {[%clk 0:01:04.9]} 31...
h5 {[%clk 0:00:25.6]} 32. gxh5 {[%clk 0:01:04.2]} 32... gxh5 {[%clk 0:00:26.5]}
33. Rf2+ {[%clk 0:01:02.1]} 33... Ke8 {[%clk 0:00:27]} 34. Ra5 {[%clk
0:00:57.6]} 34... Rb7 {[%clk 0:00:26.4]} 35. Ra6 {[%clk 0:00:56.7]} 35... Kd8
{[%clk 0:00:26]} 36. Rf8+ {[%clk 0:00:52.9]} 36... Kd7 {[%clk 0:00:26]} 37. Rxa7
{[%clk 0:00:52.9]} 37... Rxa7 {[%clk 0:00:25.7]} 38. Bxa7 {[%clk 0:00:53.8]}
38... Ke6 {[%clk 0:00:25.1]} 39. Bd4 {[%clk 0:00:52.4]} 39... Rf7 {[%clk
0:00:23.3]} 40. Rb8 {[%clk 0:00:39.1]} 40... Rf4 {[%clk 0:00:22.8]} 41. Rb6+
{[%clk 0:00:36.7]} 41... Kf5 {[%clk 0:00:22.5]} 42. Bf6 {[%clk 0:00:35.5]} 42...
Rf2 {[%clk 0:00:21.4]} 43. Bg5 {[%clk 0:00:32.6]} 43... Rxc2+ {[%clk 0:00:22.3]}
44. Ka3 {[%clk 0:00:32.8]} 44... Rxc3 {[%clk 0:00:22.6]} 45. Rxb5 {[%clk
0:00:33.1]} 45... Rc8 {[%clk 0:00:20.3]} 46. Rb6 {[%clk 0:00:30.8]} 46... d4
{[%clk 0:00:19.7]} 47. Rd6 {[%clk 0:00:29.5]} 47... d3 {[%clk 0:00:18.1]} 48. b4
{[%clk 0:00:29.4]} 48... Ke5 {[%clk 0:00:16.7]} 49. Rd7 {[%clk 0:00:29.2]} 49...
Bd5 {[%clk 0:00:17.2]} 50. b5 {[%clk 0:00:28.7]} 50... Rc3+ {[%clk 0:00:16.4]}
51. Kb4 {[%clk 0:00:28.5]} 51... Rc2 {[%clk 0:00:15.9]} 52. b6 {[%clk
0:00:27.6]} 52... d2 {[%clk 0:00:16.3]} 53. Bxd2 {[%clk 0:00:24.7]} 53... Rxd2
{[%clk 0:00:17.2]} 54. Kc5 {[%clk 0:00:20.7]} 54... Rc2+ {[%clk 0:00:17.4]} 55.
Kb5 {[%clk 0:00:21]} 55... Bc6+ {[%clk 0:00:16.9]} 56. Ka6 {[%clk 0:00:20.3]}
56... Bxd7 {[%clk 0:00:17.8]} 57. b7 {[%clk 0:00:21]} 57... Rb2 {[%clk
0:00:17.7]} 58. Ka7 {[%clk 0:00:21.3]} 58... Kf4 {[%clk 0:00:16.7]} 59. b8=Q+
{[%clk 0:00:21.3]} 59... Rxb8 {[%clk 0:00:17.4]} 60. Kxb8 {[%clk 0:00:22.2]}
60... Kg4 {[%clk 0:00:18]} 61. Kc7 {[%clk 0:00:23.1]} 61... Kxh4 {[%clk
0:00:18.7]} 0-1

[Event "Early-Titled-Tuesday-Blitz-October-17-2023"]
[Site "Chess.com"]
[Date "2023.10.17"]
[Round "1"]
[White "sorch29"]
[Black "Fonsofan"]
[Result "0-1"]
[WhiteElo "2404"]
[BlackElo "2680"]
[TimeControl "180+1"]
[EndTime "8:07:57 PDT"]
[Termination "Fonsofan won by checkmate"]

1. d4 {[%clk 0:03:00.9]} 1... Nf6 {[%clk 0:02:52.5]} 2. c4 {[%clk 0:03:00.8]}
2... c5 {[%clk 0:02:50.5]} 3. Nf3 {[%clk 0:03:00.3]} 3... d5 {[%clk 0:02:44]} 4.
e3 {[%clk 0:02:45.8]} 4... Nc6 {[%clk 0:02:40.5]} 5. Nc3 {[%clk 0:02:45.3]} 5...
e6 {[%clk 0:02:36.8]} 6. a3 {[%clk 0:02:42]} 6... a5 {[%clk 0:02:36.1]} 7. Bd3
{[%clk 0:02:27.3]} 7... Be7 {[%clk 0:02:33.5]} 8. O-O {[%clk 0:02:26.6]} 8...
cxd4 {[%clk 0:02:32.1]} 9. exd4 {[%clk 0:02:26.3]} 9... O-O {[%clk 0:02:27.5]}
10. cxd5 {[%clk 0:01:40.5]} 10... Nxd5 {[%clk 0:02:28.4]} 11. Qc2 {[%clk
0:01:40.5]} 11... Nf6 {[%clk 0:02:20.2]} 12. Rd1 {[%clk 0:01:40]} 12... h6
{[%clk 0:02:07.2]} 13. Qe2 {[%clk 0:01:32.9]} 13... b6 {[%clk 0:02:04.6]} 14.
Bc4 {[%clk 0:01:26]} 14... Re8 {[%clk 0:01:45]} 15. Bf4 {[%clk 0:01:12.6]} 15...
Bb7 {[%clk 0:01:43.8]} 16. Rac1 {[%clk 0:01:12.4]} 16... Bd6 {[%clk 0:01:36.5]}
17. Ne5 {[%clk 0:01:10.8]} 17... Rc8 {[%clk 0:01:22.4]} 18. Bb5 {[%clk
0:01:10.9]} 18... Re7 {[%clk 0:01:16.4]} 19. Bg3 {[%clk 0:00:58.8]} 19... Rec7
{[%clk 0:01:07.7]} 20. h3 {[%clk 0:00:32.1]} 20... Ne7 {[%clk 0:01:07.8]} 21.
Re1 {[%clk 0:00:23.9]} 21... Nf5 {[%clk 0:00:39]} 22. Rcd1 {[%clk 0:00:20.5]}
22... Nxg3 {[%clk 0:00:33.4]} 23. fxg3 {[%clk 0:00:21.4]} 23... Nd5 {[%clk
0:00:20.4]} 24. Ne4 {[%clk 0:00:20.5]} 24... Rc2 {[%clk 0:00:20.8]} 25. Rd2
{[%clk 0:00:20.4]} 25... Rxd2 {[%clk 0:00:20.8]} 26. Qxd2 {[%clk 0:00:20.8]}
26... Ne7 {[%clk 0:00:15]} 27. Re2 {[%clk 0:00:16.2]} 27... Bxe5 {[%clk
0:00:14.6]} 28. dxe5 {[%clk 0:00:16.3]} 28... Qxd2 {[%clk 0:00:15.3]} 29. Nxd2
{[%clk 0:00:16.8]} 29... Rc2 {[%clk 0:00:11.7]} 30. b3 {[%clk 0:00:16.7]} 30...
Bd5 {[%clk 0:00:10.3]} 31. b4 {[%clk 0:00:09.5]} 31... axb4 {[%clk 0:00:09.8]}
32. axb4 {[%clk 0:00:10.4]} 32... Rb2 {[%clk 0:00:10.3]} 33. Nf3 {[%clk
0:00:07.1]} 33... Rxb4 {[%clk 0:00:08.9]} 34. Bd3 {[%clk 0:00:07.8]} 34... Nc6
{[%clk 0:00:08]} 35. Rc2 {[%clk 0:00:07.5]} 35... g6 {[%clk 0:00:06.4]} 36. Be2
{[%clk 0:00:07.9]} 36... Bxf3 {[%clk 0:00:05.9]} 37. Bxf3 {[%clk 0:00:08.2]}
37... Nxe5 {[%clk 0:00:06.6]} 38. Rc8+ {[%clk 0:00:07.4]} 38... Kg7 {[%clk
0:00:06.9]} 39. Bb7 {[%clk 0:00:07.4]} 39... Rb1+ {[%clk 0:00:03.8]} 40. Kh2
{[%clk 0:00:07.8]} 40... Rb2 {[%clk 0:00:04.5]} 41. g4 {[%clk 0:00:08.2]} 41...
g5 {[%clk 0:00:04.4]} 42. Rd8 {[%clk 0:00:08.2]} 42... Ng6 {[%clk 0:00:04.5]}
43. Rd3 {[%clk 0:00:05.1]} 43... Kf6 {[%clk 0:00:04.5]} 44. Rd7 {[%clk
0:00:05.9]} 44... Ne5 {[%clk 0:00:04.2]} 45. Rc7 {[%clk 0:00:06.8]} 45... b5
{[%clk 0:00:04.6]} 46. Ba8 {[%clk 0:00:06.6]} 46... b4 {[%clk 0:00:05]} 47. Be4
{[%clk 0:00:06.2]} 47... b3 {[%clk 0:00:04.8]} 48. Rb7 {[%clk 0:00:06.8]} 48...
Re2 {[%clk 0:00:05.1]} 49. Bb1 {[%clk 0:00:06.3]} 49... b2 {[%clk 0:00:05.6]}
50. Ba2 {[%clk 0:00:05.5]} 50... Nf3+ {[%clk 0:00:04.9]} 51. Kg3 {[%clk
0:00:05.5]} 51... Ne1 {[%clk 0:00:05.1]} 52. Bb1 {[%clk 0:00:04.5]} 52... Rxg2#
{[%clk 0:00:05.1]} 0-1